[Event "Early-Titled-Tuesday-Blitz-April-16-2024"]
[Site "Chess.com"]
[Date "2024.04.16"]
[Round "10"]
[White "HajiyevKanan"]
[Black "lrjchess"]
[Result "1-0"]
[WhiteElo "2622"]
[BlackElo "2477"]
[TimeControl "180+1"]
[EndTime "10:00:24 PDT"]
[Termination "HajiyevKanan won on time"]

1. d4 {[%clk 0:03:00.9]} 1... Nf6 {[%clk 0:02:57.6]} 2. Nf3 {[%clk 0:03:01.8]}
2... g6 {[%clk 0:02:57]} 3. c4 {[%clk 0:03:02.5]} 3... Bg7 {[%clk 0:02:57.3]} 4.
g3 {[%clk 0:03:03.3]} 4... O-O {[%clk 0:02:57.8]} 5. Bg2 {[%clk 0:03:04.2]} 5...
d6 {[%clk 0:02:58.2]} 6. O-O {[%clk 0:03:04.9]} 6... Bg4 {[%clk 0:02:58.5]} 7.
b3 {[%clk 0:03:05.8]} 7... Nbd7 {[%clk 0:02:57.5]} 8. h3 {[%clk 0:03:06.4]} 8...
Bxf3 {[%clk 0:02:57.3]} 9. exf3 {[%clk 0:03:05.4]} 9... e5 {[%clk 0:02:56.8]}
10. Bb2 {[%clk 0:03:05]} 10... exd4 {[%clk 0:02:53.8]} 11. Bxd4 {[%clk
0:03:03.7]} 11... Ne8 {[%clk 0:02:53.5]} 12. Nc3 {[%clk 0:03:02.2]} 12... Bxd4
{[%clk 0:02:51.1]} 13. Qxd4 {[%clk 0:03:03.1]} 13... Qf6 {[%clk 0:02:51]} 14.
Qd2 {[%clk 0:03:01.3]} 14... Nb6 {[%clk 0:02:44.6]} 15. f4 {[%clk 0:03:00.8]}
15... Rb8 {[%clk 0:02:42.4]} 16. Rad1 {[%clk 0:03:00.6]} 16... h5 {[%clk
0:02:41.5]} 17. Ne4 {[%clk 0:03:00.7]} 17... Qg7 {[%clk 0:02:40.5]} 18. a4
{[%clk 0:02:51.3]} 18... Nd7 {[%clk 0:02:38]} 19. a5 {[%clk 0:02:46.6]} 19... h4
{[%clk 0:02:37.3]} 20. g4 {[%clk 0:02:46.6]} 20... Nef6 {[%clk 0:02:28.8]} 21.
Ng5 {[%clk 0:02:43.5]} 21... Nh7 {[%clk 0:02:24.7]} 22. Nf3 {[%clk 0:02:42.6]}
22... Qh6 {[%clk 0:02:14.7]} 23. Qd4 {[%clk 0:02:34.3]} 23... a6 {[%clk
0:02:10.3]} 24. g5 {[%clk 0:02:31.2]} 24... Qh5 {[%clk 0:02:07.3]} 25. Nd2
{[%clk 0:02:24.1]} 25... Nxg5 {[%clk 0:01:45.4]} 26. fxg5 {[%clk 0:02:21.7]}
26... Qxg5 {[%clk 0:01:46.3]} 27. f4 {[%clk 0:02:13.5]} 27... Qxa5 {[%clk
0:01:44.8]} 28. f5 {[%clk 0:02:07.3]} 28... Qc5 {[%clk 0:01:39.9]} 29. Ne4
{[%clk 0:01:59.6]} 29... Qxd4+ {[%clk 0:01:38.9]} 30. Rxd4 {[%clk 0:02:00.5]}
30... Ne5 {[%clk 0:01:34.8]} 31. c5 {[%clk 0:01:45.6]} 31... dxc5 {[%clk
0:01:33.6]} 32. Rd5 {[%clk 0:01:46.1]} 32... f6 {[%clk 0:01:28.7]} 33. fxg6
{[%clk 0:01:46.3]} 33... Kg7 {[%clk 0:01:24.9]} 34. Rxc5 {[%clk 0:01:45.7]}
34... c6 {[%clk 0:01:20.3]} 35. Nxf6 {[%clk 0:01:41.2]} 35... Rxf6 {[%clk
0:01:21.2]} 36. Rxe5 {[%clk 0:01:41.4]} 36... Rxf1+ {[%clk 0:01:19.9]} 37. Bxf1
{[%clk 0:01:34]} 37... Kxg6 {[%clk 0:01:20.8]} 38. Bd3+ {[%clk 0:01:34.6]} 38...
Kf6 {[%clk 0:01:17.9]} 39. Rh5 {[%clk 0:01:34.5]} 39... Rd8 {[%clk 0:01:12.8]}
40. Be4 {[%clk 0:01:21.6]} 40... Rd4 {[%clk 0:00:58]} 41. Bf3 {[%clk 0:01:10.7]}
41... Rd3 {[%clk 0:00:50.6]} 42. Kf2 {[%clk 0:01:10.8]} 42... Rxb3 {[%clk
0:00:48.6]} 43. Rxh4 {[%clk 0:01:11.1]} 43... a5 {[%clk 0:00:47.8]} 44. Rh6+
{[%clk 0:01:10.3]} 44... Kg7 {[%clk 0:00:42.9]} 45. Rh5 {[%clk 0:01:10.6]} 45...
a4 {[%clk 0:00:41.5]} 46. Ra5 {[%clk 0:01:10.7]} 46... a3 {[%clk 0:00:41.3]} 47.
Ra7 {[%clk 0:01:09.7]} 47... Kh6 {[%clk 0:00:35.6]} 48. Kg3 {[%clk 0:01:02.3]}
48... b5 {[%clk 0:00:28.9]} 49. Ra6 {[%clk 0:01:02.4]} 49... Rc3 {[%clk
0:00:25.7]} 50. Kf4 {[%clk 0:01:00.1]} 50... b4 {[%clk 0:00:17.1]} 51. Bxc6
{[%clk 0:00:54.4]} 51... Kg7 {[%clk 0:00:11.7]} 52. Ra7+ {[%clk 0:00:52.7]}
52... Kf6 {[%clk 0:00:09.9]} 53. Bf3 {[%clk 0:00:53.3]} 53... Rc4+ {[%clk
0:00:07.5]} 54. Be4 {[%clk 0:00:54]} 54... Rc3 {[%clk 0:00:04.5]} 55. Ra6+
{[%clk 0:00:54.6]} 55... Ke7 {[%clk 0:00:04.3]} 56. h4 {[%clk 0:00:55.5]} 56...
Rh3 {[%clk 0:00:04.3]} 57. Kg4 {[%clk 0:00:55.6]} 57... Rh2 {[%clk 0:00:04.7]}
58. Ra4 {[%clk 0:00:54.6]} 58... a2 {[%clk 0:00:05]} 59. Bd5 {[%clk 0:00:52.2]}
59... Rd2 {[%clk 0:00:02.1]} 60. Bxa2 {[%clk 0:00:51.7]} 60... Rd4+ {[%clk
0:00:02.7]} 61. Kg5 {[%clk 0:00:51.5]} 61... Rd2 {[%clk 0:00:02.4]} 62. h5
{[%clk 0:00:51.2]} 62... Kd6 {[%clk 0:00:02.8]} 63. h6 {[%clk 0:00:51.1]} 63...
Kc5 {[%clk 0:00:03.3]} 64. h7 {[%clk 0:00:49.7]} 64... Rg2+ {[%clk 0:00:04.2]}
65. Kh6 {[%clk 0:00:48.7]} 65... Rh2+ {[%clk 0:00:04.4]} 66. Kg7 {[%clk
0:00:49.2]} 66... Rg2+ {[%clk 0:00:05]} 67. Kf6 {[%clk 0:00:49.5]} 67... Rf2+
{[%clk 0:00:05.1]} 68. Ke5 {[%clk 0:00:48.3]} 68... Re2+ {[%clk 0:00:05.3]} 69.
Kf4 {[%clk 0:00:47.9]} 69... Rh2 {[%clk 0:00:06]} 70. Bb1 {[%clk 0:00:42.2]}
70... b3 {[%clk 0:00:03.4]} 71. Kg3 {[%clk 0:00:39.9]} 1-0

[Event "Early-Titled-Tuesday-Blitz-April-16-2024"]
[Site "Chess.com"]
[Date "2024.04.16"]
[Round "10"]
[White "AlexanderKing"]
[Black "NewYearGirl"]
[Result "1-0"]
[WhiteElo "2577"]
[BlackElo "2377"]
[TimeControl "180+1"]
[EndTime "10:00:29 PDT"]
[Termination "AlexanderKing won by resignation"]

1. c4 {[%clk 0:03:00.9]} 1... Nf6 {[%clk 0:02:55.6]} 2. g3 {[%clk 0:03:01.3]}
2... b5 {[%clk 0:02:54.6]} 3. cxb5 {[%clk 0:03:00]} 3... Bb7 {[%clk 0:02:54.6]}
4. Nf3 {[%clk 0:03:00.1]} 4... a6 {[%clk 0:02:55]} 5. bxa6 {[%clk 0:02:59.6]}
5... Nxa6 {[%clk 0:02:55.4]} 6. Bg2 {[%clk 0:02:59.7]} 6... e6 {[%clk
0:02:54.7]} 7. O-O {[%clk 0:02:51.1]} 7... Be7 {[%clk 0:02:53.2]} 8. Nc3 {[%clk
0:02:47.7]} 8... c5 {[%clk 0:02:51.7]} 9. d4 {[%clk 0:02:46.6]} 9... O-O {[%clk
0:02:48.1]} 10. Bg5 {[%clk 0:02:44.1]} 10... Nb4 {[%clk 0:02:47]} 11. a3 {[%clk
0:02:27.6]} 11... cxd4 {[%clk 0:02:46.9]} 12. Nxd4 {[%clk 0:02:22.6]} 12... Bxg2
{[%clk 0:02:45.2]} 13. Kxg2 {[%clk 0:02:23.5]} 13... Nbd5 {[%clk 0:02:40.1]} 14.
Nxd5 {[%clk 0:02:13.2]} 14... Nxd5 {[%clk 0:02:36.9]} 15. Bxe7 {[%clk
0:02:14.1]} 15... Qxe7 {[%clk 0:02:37.1]} 16. e4 {[%clk 0:02:11.2]} 16... Nb6
{[%clk 0:02:33.9]} 17. Nf3 {[%clk 0:01:55.5]} 17... d5 {[%clk 0:02:30]} 18. exd5
{[%clk 0:01:51.5]} 18... Nxd5 {[%clk 0:02:30.9]} 19. Re1 {[%clk 0:01:52.4]}
19... Qb7 {[%clk 0:02:28.8]} 20. b4 {[%clk 0:01:45.7]} 20... Rfc8 {[%clk
0:02:23.1]} 21. Qd4 {[%clk 0:00:35.9]} 21... Rc3 {[%clk 0:02:19.3]} 22. Qe4
{[%clk 0:00:26.3]} 22... h6 {[%clk 0:02:13.9]} 23. a4 {[%clk 0:00:15.3]} 23...
Qxb4 {[%clk 0:02:00.5]} 24. Qxb4 {[%clk 0:00:15.1]} 24... Nxb4 {[%clk
0:02:01.4]} 25. Re4 {[%clk 0:00:07.9]} 25... Nd3 {[%clk 0:01:55.8]} 26. Re3
{[%clk 0:00:04.8]} 26... Rd8 {[%clk 0:01:27.8]} 27. a5 {[%clk 0:00:05.1]} 27...
Rc7 {[%clk 0:01:27.8]} 28. a6 {[%clk 0:00:03]} 28... Ra7 {[%clk 0:01:28]} 29.
Ra3 {[%clk 0:00:02.1]} 29... Nb4 {[%clk 0:01:26.1]} 30. Re4 {[%clk 0:00:01.8]}
30... Nd5 {[%clk 0:00:59.3]} 31. Ra5 {[%clk 0:00:01.8]} 31... Rda8 {[%clk
0:00:56]} 32. Rea4 {[%clk 0:00:02.1]} 32... Nc7 {[%clk 0:00:56.2]} 33. Ne5
{[%clk 0:00:02.6]} 33... Rxa6 {[%clk 0:00:55.6]} 34. Rxa6 {[%clk 0:00:02.8]}
34... Rxa6 {[%clk 0:00:56.5]} 35. Rc4 {[%clk 0:00:03.3]} 35... Ra7 {[%clk
0:00:53.7]} 36. Nc6 {[%clk 0:00:03]} 36... Ra2 {[%clk 0:00:49.3]} 37. Ne7+
{[%clk 0:00:02.1]} 37... Kh7 {[%clk 0:00:47]} 38. Rxc7 {[%clk 0:00:03]} 38... e5
{[%clk 0:00:46.4]} 39. Nf5 {[%clk 0:00:03]} 39... Kg6 {[%clk 0:00:46.2]} 40.
Nh4+ {[%clk 0:00:03.3]} 40... Kf6 {[%clk 0:00:45.9]} 41. Rc6+ {[%clk 0:00:04]}
41... Ke7 {[%clk 0:00:43.9]} 42. Nf5+ {[%clk 0:00:04.5]} 42... Kd7 {[%clk
0:00:43.8]} 43. Rd6+ {[%clk 0:00:05]} 43... Kc7 {[%clk 0:00:43.7]} 44. Rd5
{[%clk 0:00:05.5]} 44... e4 {[%clk 0:00:40.4]} 45. Re5 {[%clk 0:00:04.8]} 45...
g6 {[%clk 0:00:39.2]} 46. Nxh6 {[%clk 0:00:05]} 46... f5 {[%clk 0:00:39.9]} 47.
h4 {[%clk 0:00:02.3]} 47... Re2 {[%clk 0:00:38.4]} 48. h5 {[%clk 0:00:02.3]}
48... gxh5 {[%clk 0:00:38.2]} 49. Nxf5 {[%clk 0:00:02.6]} 49... Kd7 {[%clk
0:00:33.2]} 50. Ne3 {[%clk 0:00:03]} 50... Kd6 {[%clk 0:00:30.6]} 51. Rxe4
{[%clk 0:00:03.6]} 51... Ra2 {[%clk 0:00:29.1]} 52. Rh4 {[%clk 0:00:04.5]} 52...
Ke5 {[%clk 0:00:27]} 53. Rxh5+ {[%clk 0:00:04.4]} 53... Ke4 {[%clk 0:00:27.6]}
54. Rh4+ {[%clk 0:00:05.1]} 54... Kd3 {[%clk 0:00:27.6]} 55. Rh8 {[%clk
0:00:06]} 55... Ke2 {[%clk 0:00:26.7]} 56. Rf8 {[%clk 0:00:06.5]} 56... Ra5
{[%clk 0:00:20.2]} 57. Ng4 {[%clk 0:00:06.7]} 57... Ra4 {[%clk 0:00:19.3]} 58.
Re8+ {[%clk 0:00:07]} 58... Kd3 {[%clk 0:00:19.3]} 59. Nh2 {[%clk 0:00:07.9]}
59... Ra2 {[%clk 0:00:18.9]} 60. Re3+ {[%clk 0:00:08]} 60... Kd4 {[%clk
0:00:19.3]} 61. Nf3+ {[%clk 0:00:08.9]} 61... Kd5 {[%clk 0:00:19.3]} 62. g4
{[%clk 0:00:09.8]} 62... Ra4 {[%clk 0:00:19.2]} 63. Kg3 {[%clk 0:00:10.7]} 63...
Ra8 {[%clk 0:00:18.7]} 64. Re5+ {[%clk 0:00:10.4]} 64... Kd6 {[%clk 0:00:18.7]}
65. Re1 {[%clk 0:00:11.3]} 1-0

[Event "Early-Titled-Tuesday-Blitz-April-16-2024"]
[Site "Chess.com"]
[Date "2024.04.16"]
[Round "10"]
[White "azikom"]
[Black "kuba2006"]
[Result "0-1"]
[WhiteElo "2698"]
[BlackElo "2570"]
[TimeControl "180+1"]
[EndTime "10:00:31 PDT"]
[Termination "kuba2006 won by resignation"]

1. d4 {[%clk 0:03:00]} 1... Nf6 {[%clk 0:02:59.7]} 2. Bf4 {[%clk 0:03:00.1]}
2... e6 {[%clk 0:02:50.3]} 3. e3 {[%clk 0:03:00.1]} 3... c5 {[%clk 0:02:49.3]}
4. c3 {[%clk 0:02:58.9]} 4... Nc6 {[%clk 0:02:48.2]} 5. Nd2 {[%clk 0:02:59.1]}
5... b6 {[%clk 0:02:47.5]} 6. h3 {[%clk 0:02:57.8]} 6... Bb7 {[%clk 0:02:47.6]}
7. Ngf3 {[%clk 0:02:58.4]} 7... Be7 {[%clk 0:02:46.9]} 8. Bh2 {[%clk 0:02:59]}
8... O-O {[%clk 0:02:46.5]} 9. Bd3 {[%clk 0:02:57.6]} 9... Rc8 {[%clk
0:02:42.7]} 10. O-O {[%clk 0:02:57.6]} 10... d6 {[%clk 0:02:41.9]} 11. a4 {[%clk
0:02:56.4]} 11... a6 {[%clk 0:02:40]} 12. Qe2 {[%clk 0:02:56.7]} 12... Ra8
{[%clk 0:02:37.4]} 13. dxc5 {[%clk 0:02:46.9]} 13... bxc5 {[%clk 0:02:35]} 14.
e4 {[%clk 0:02:46.6]} 14... Nd7 {[%clk 0:02:27.1]} 15. Rfd1 {[%clk 0:02:46.2]}
15... d5 {[%clk 0:02:21.3]} 16. exd5 {[%clk 0:02:45.2]} 16... exd5 {[%clk
0:02:22.2]} 17. Nf1 {[%clk 0:02:44.3]} 17... Re8 {[%clk 0:02:20]} 18. Qc2 {[%clk
0:02:42.8]} 18... Nf8 {[%clk 0:02:13.6]} 19. Ne3 {[%clk 0:02:37.9]} 19... d4
{[%clk 0:02:13.6]} 20. Nf5 {[%clk 0:02:37.8]} 20... Qd7 {[%clk 0:01:53.9]} 21.
Be4 {[%clk 0:02:28.7]} 21... Rac8 {[%clk 0:01:26.1]} 22. Rac1 {[%clk 0:02:24.9]}
22... Na5 {[%clk 0:01:21.4]} 23. Bxb7 {[%clk 0:02:23.2]} 23... Qxb7 {[%clk
0:01:19.7]} 24. Nxe7+ {[%clk 0:02:19.1]} 24... Rxe7 {[%clk 0:01:20.6]} 25. cxd4
{[%clk 0:02:19]} 25... Nb3 {[%clk 0:01:19.5]} 26. Rb1 {[%clk 0:02:05.8]} 26...
cxd4 {[%clk 0:01:16]} 27. Qd3 {[%clk 0:02:05.8]} 27... Ne6 {[%clk 0:01:06]} 28.
Bg3 {[%clk 0:02:03]} 28... h6 {[%clk 0:01:02.7]} 29. Ne5 {[%clk 0:01:57.3]}
29... Qd5 {[%clk 0:00:58.5]} 30. Qf3 {[%clk 0:01:51.4]} 30... Qxf3 {[%clk
0:00:51.5]} 31. Nxf3 {[%clk 0:01:52.3]} 31... Rb7 {[%clk 0:00:47]} 32. Bd6
{[%clk 0:01:44.7]} 32... Rc6 {[%clk 0:00:44.3]} 33. Be5 {[%clk 0:01:43.8]} 33...
Rc4 {[%clk 0:00:31.6]} 34. Rd3 {[%clk 0:01:31.2]} 34... Nec5 {[%clk 0:00:25.1]}
35. Rdd1 {[%clk 0:01:29]} 35... d3 {[%clk 0:00:24.2]} 36. Nd2 {[%clk 0:01:10.2]}
36... Rc2 {[%clk 0:00:11.1]} 37. Nxb3 {[%clk 0:01:08]} 37... Rxb3 {[%clk
0:00:12]} 38. Rbc1 {[%clk 0:00:57.7]} 38... Nxa4 {[%clk 0:00:11.4]} 39. Rxc2
{[%clk 0:00:57]} 39... dxc2 {[%clk 0:00:12.3]} 40. Rd8+ {[%clk 0:00:41.4]} 40...
Kh7 {[%clk 0:00:11.2]} 41. Rc8 {[%clk 0:00:42.3]} 41... Nc3 {[%clk 0:00:11.2]}
42. Bf4 {[%clk 0:00:30.8]} 42... Ne2+ {[%clk 0:00:10.9]} 43. Kh2 {[%clk
0:00:30.9]} 43... Nxf4 {[%clk 0:00:10.4]} 44. Rxc2 {[%clk 0:00:31.8]} 44... Nd3
{[%clk 0:00:09.3]} 45. f3 {[%clk 0:00:28]} 45... Nxb2 {[%clk 0:00:09]} 46. Rc7
{[%clk 0:00:27.8]} 46... a5 {[%clk 0:00:09.3]} 47. Ra7 {[%clk 0:00:27.2]} 47...
a4 {[%clk 0:00:09.5]} 48. Rxf7 {[%clk 0:00:27.8]} 48... a3 {[%clk 0:00:10]} 49.
Ra7 {[%clk 0:00:28.4]} 49... Nc4 {[%clk 0:00:10.4]} 50. Ra4 {[%clk 0:00:26.3]}
50... Rc3 {[%clk 0:00:10.5]} 51. h4 {[%clk 0:00:24.7]} 51... Rc2 {[%clk
0:00:10.4]} 52. Kh3 {[%clk 0:00:23]} 52... a2 {[%clk 0:00:10.8]} 53. g4 {[%clk
0:00:23.4]} 53... Rb2 {[%clk 0:00:10.2]} 54. g5 {[%clk 0:00:20.2]} 54... Ne3
{[%clk 0:00:10.2]} 55. Ra6 {[%clk 0:00:19]} 55... hxg5 {[%clk 0:00:10]} 56. hxg5
{[%clk 0:00:19]} 56... Nc2 {[%clk 0:00:09.6]} 57. Kg4 {[%clk 0:00:19]} 57...
a1=Q {[%clk 0:00:09.2]} 58. g6+ {[%clk 0:00:19.7]} 58... Kh6 {[%clk 0:00:09]}
0-1

[Event "Early-Titled-Tuesday-Blitz-April-16-2024"]
[Site "Chess.com"]
[Date "2024.04.16"]
[Round "10"]
[White "Dinosaurio_1975"]
[Black "Veleamater"]
[Result "1-0"]
[WhiteElo "2592"]
[BlackElo "2427"]
[TimeControl "180+1"]
[EndTime "10:00:31 PDT"]
[Termination "Dinosaurio_1975 won by resignation"]

1. Nf3 {[%clk 0:03:00.9]} 1... d6 {[%clk 0:03:00.9]} 2. c4 {[%clk 0:02:59.7]}
2... g6 {[%clk 0:03:01.8]} 3. Nc3 {[%clk 0:02:59.2]} 3... Bg7 {[%clk 0:03:02.4]}
4. g3 {[%clk 0:02:58.2]} 4... Nf6 {[%clk 0:03:02.8]} 5. Bg2 {[%clk 0:02:58.4]}
5... O-O {[%clk 0:03:03.5]} 6. O-O {[%clk 0:02:58.9]} 6... Nc6 {[%clk
0:03:04.1]} 7. d4 {[%clk 0:02:59.2]} 7... e5 {[%clk 0:03:04.2]} 8. e4 {[%clk
0:02:55.9]} 8... Bg4 {[%clk 0:02:53.6]} 9. d5 {[%clk 0:02:49.6]} 9... Ne7 {[%clk
0:02:53.5]} 10. h3 {[%clk 0:02:48.8]} 10... Bd7 {[%clk 0:02:53.4]} 11. Nh4
{[%clk 0:02:45.9]} 11... Ne8 {[%clk 0:02:52]} 12. b4 {[%clk 0:02:39.1]} 12... h6
{[%clk 0:02:52.1]} 13. c5 {[%clk 0:02:32.7]} 13... f5 {[%clk 0:02:51.9]} 14.
exf5 {[%clk 0:02:31.6]} 14... gxf5 {[%clk 0:02:46.3]} 15. Qc2 {[%clk 0:02:11.8]}
15... f4 {[%clk 0:02:42.7]} 16. Rd1 {[%clk 0:01:52.3]} 16... Nf5 {[%clk
0:02:41.8]} 17. Nxf5 {[%clk 0:01:35.4]} 17... Bxf5 {[%clk 0:02:41.7]} 18. Ne4
{[%clk 0:01:36.3]} 18... Nf6 {[%clk 0:02:40]} 19. cxd6 {[%clk 0:01:23.4]} 19...
cxd6 {[%clk 0:02:38]} 20. Bb2 {[%clk 0:01:20.6]} 20... Rc8 {[%clk 0:02:29.9]}
21. Qd3 {[%clk 0:01:18.6]} 21... Nxe4 {[%clk 0:02:29.4]} 22. Bxe4 {[%clk
0:01:18.5]} 22... Bxh3 {[%clk 0:02:25.6]} 23. Rac1 {[%clk 0:00:51.3]} 23... Qg5
{[%clk 0:02:23.3]} 24. Rxc8 {[%clk 0:00:47.7]} 24... Bxc8 {[%clk 0:02:21.6]} 25.
Rc1 {[%clk 0:00:38.7]} 25... h5 {[%clk 0:01:59.8]} 26. Rc7 {[%clk 0:00:19.3]}
26... h4 {[%clk 0:01:56.1]} 27. Bc1 {[%clk 0:00:17.4]} 27... Bh3 {[%clk
0:01:51.9]} 28. Kh2 {[%clk 0:00:10.4]} 28... Bg4 {[%clk 0:01:24.7]} 29. gxf4
{[%clk 0:00:08.4]} 29... exf4 {[%clk 0:01:12]} 30. Bf3 {[%clk 0:00:08.4]} 30...
Bf5 {[%clk 0:01:04.5]} 31. Qf1 {[%clk 0:00:07.9]} 31... Rf6 {[%clk 0:00:50.5]}
32. Qg2 {[%clk 0:00:07.3]} 32... Qxg2+ {[%clk 0:00:45.2]} 33. Kxg2 {[%clk
0:00:08.2]} 33... h3+ {[%clk 0:00:37]} 34. Kh2 {[%clk 0:00:07.6]} 34... Rf8
{[%clk 0:00:18.9]} 35. Rxb7 {[%clk 0:00:07.2]} 35... Rc8 {[%clk 0:00:18.7]} 36.
Bxf4 {[%clk 0:00:07.2]} 36... Rc2 {[%clk 0:00:18.7]} 37. Bg3 {[%clk 0:00:07]}
37... Be5 {[%clk 0:00:18.1]} 38. Kg1 {[%clk 0:00:03]} 38... Bxg3 {[%clk
0:00:17.5]} 39. fxg3 {[%clk 0:00:03.9]} 39... Rxa2 {[%clk 0:00:14.1]} 40. Rb8+
{[%clk 0:00:02.5]} 40... Kf7 {[%clk 0:00:13.8]} 41. Rd8 {[%clk 0:00:02.9]} 41...
Ke7 {[%clk 0:00:13.5]} 42. Rh8 {[%clk 0:00:03.3]} 42... Kf6 {[%clk 0:00:13.2]}
43. g4 {[%clk 0:00:03.6]} 43... Ra1+ {[%clk 0:00:12.8]} 44. Kh2 {[%clk
0:00:03.3]} 44... Ra2+ {[%clk 0:00:13.1]} 45. Kg3 {[%clk 0:00:03.9]} 45... Bc2
{[%clk 0:00:12.1]} 46. Rxh3 {[%clk 0:00:04.3]} 46... Ra3 {[%clk 0:00:12.5]} 47.
Rh6+ {[%clk 0:00:04.8]} 47... Ke5 {[%clk 0:00:12.8]} 48. Re6+ {[%clk 0:00:05.3]}
48... Kd4 {[%clk 0:00:12.2]} 49. Rxd6 {[%clk 0:00:05.3]} 49... Be4 {[%clk
0:00:12.5]} 50. Rf6 {[%clk 0:00:05.8]} 50... Ke5 {[%clk 0:00:12.3]} 51. Rf8
{[%clk 0:00:05.5]} 51... Bxd5 {[%clk 0:00:11.3]} 52. Rf5+ {[%clk 0:00:04.6]}
52... Ke6 {[%clk 0:00:10.5]} 53. Rxd5 {[%clk 0:00:05.5]} 53... Rxf3+ {[%clk
0:00:10.8]} 54. Kxf3 {[%clk 0:00:06.4]} 54... Kxd5 {[%clk 0:00:11.5]} 55. Kf4
{[%clk 0:00:07.3]} 55... Kc4 {[%clk 0:00:11.8]} 56. g5 {[%clk 0:00:07.8]} 56...
Kxb4 {[%clk 0:00:12.7]} 57. g6 {[%clk 0:00:08.6]} 57... a5 {[%clk 0:00:13.6]}
58. g7 {[%clk 0:00:09.5]} 58... a4 {[%clk 0:00:14.5]} 59. g8=Q {[%clk
0:00:10.3]} 59... a3 {[%clk 0:00:15.4]} 60. Qa2 {[%clk 0:00:10.7]} 60... Kc3
{[%clk 0:00:16.3]} 61. Qxa3+ {[%clk 0:00:10.1]} 1-0

[Event "Early-Titled-Tuesday-Blitz-April-16-2024"]
[Site "Chess.com"]
[Date "2024.04.16"]
[Round "10"]
[White "Ati1517"]
[Black "ExchangeAB"]
[Result "1-0"]
[WhiteElo "2250"]
[BlackElo "2389"]
[TimeControl "180+1"]
[EndTime "10:00:31 PDT"]
[Termination "Ati1517 won by checkmate"]

1. e4 {[%clk 0:02:56.5]} 1... c5 {[%clk 0:03:00.4]} 2. Nf3 {[%clk 0:02:46.6]}
2... d6 {[%clk 0:03:00.4]} 3. d4 {[%clk 0:02:44.5]} 3... cxd4 {[%clk 0:03:01.3]}
4. Nxd4 {[%clk 0:02:44.6]} 4... Nf6 {[%clk 0:03:02]} 5. Nc3 {[%clk 0:02:44.9]}
5... a6 {[%clk 0:03:02.5]} 6. Bc4 {[%clk 0:02:44.3]} 6... e6 {[%clk 0:03:00.8]}
7. Bb3 {[%clk 0:02:43.9]} 7... Be7 {[%clk 0:03:01.4]} 8. O-O {[%clk 0:02:44]}
8... O-O {[%clk 0:03:02.1]} 9. Be3 {[%clk 0:02:44.4]} 9... Nc6 {[%clk 0:03:02]}
10. f4 {[%clk 0:02:44.5]} 10... Na5 {[%clk 0:03:00.4]} 11. g4 {[%clk 0:02:42.5]}
11... Nxb3 {[%clk 0:02:55]} 12. axb3 {[%clk 0:02:40.7]} 12... Nd7 {[%clk
0:02:26.2]} 13. f5 {[%clk 0:02:37.8]} 13... Ne5 {[%clk 0:02:22.2]} 14. h3 {[%clk
0:02:28.5]} 14... Bg5 {[%clk 0:02:21.6]} 15. Bxg5 {[%clk 0:02:28.5]} 15... Qxg5
{[%clk 0:02:21.1]} 16. Nf3 {[%clk 0:02:28.9]} 16... Qe3+ {[%clk 0:02:13.3]} 17.
Kg2 {[%clk 0:02:28.1]} 17... Nxf3 {[%clk 0:01:54.9]} 18. Rxf3 {[%clk 0:02:26.6]}
18... Qb6 {[%clk 0:01:55.3]} 19. f6 {[%clk 0:02:25.3]} 19... Bd7 {[%clk
0:01:42.9]} 20. fxg7 {[%clk 0:02:25]} 20... Rfd8 {[%clk 0:01:35.8]} 21. Qd2
{[%clk 0:02:19]} 21... Be8 {[%clk 0:01:30.1]} 22. Raf1 {[%clk 0:02:15.2]} 22...
Qc5 {[%clk 0:01:26.8]} 23. h4 {[%clk 0:02:04.3]} 23... Rac8 {[%clk 0:01:25.2]}
24. R1f2 {[%clk 0:01:44.1]} 24... b5 {[%clk 0:01:23.8]} 25. Qe1 {[%clk
0:01:43.2]} 25... Qe5 {[%clk 0:01:18.2]} 26. Qf1 {[%clk 0:01:40.1]} 26... Qxg7
{[%clk 0:01:16.5]} 27. b4 {[%clk 0:01:35.3]} 27... Rc4 {[%clk 0:01:13.8]} 28. g5
{[%clk 0:01:19.4]} 28... Rxb4 {[%clk 0:01:11]} 29. Qd3 {[%clk 0:01:11.6]} 29...
Rxb2 {[%clk 0:01:01.1]} 30. e5 {[%clk 0:01:10.4]} 30... Bc6 {[%clk 0:00:49.8]}
31. Ne4 {[%clk 0:01:08.4]} 31... Bxe4 {[%clk 0:00:38.8]} 32. Qxe4 {[%clk
0:01:08.5]} 32... dxe5 {[%clk 0:00:24.4]} 33. Rxf7 {[%clk 0:01:07.7]} 33... Qxf7
{[%clk 0:00:24.9]} 34. Rxf7 {[%clk 0:01:07.2]} 34... Kxf7 {[%clk 0:00:25.8]} 35.
Qxh7+ {[%clk 0:00:53.7]} 35... Ke8 {[%clk 0:00:25.4]} 36. Qh8+ {[%clk 0:00:52]}
36... Ke7 {[%clk 0:00:23.9]} 37. Qf6+ {[%clk 0:00:51.9]} 37... Kd7 {[%clk
0:00:23]} 38. Qxe5 {[%clk 0:00:52]} 38... Rxc2+ {[%clk 0:00:22.5]} 39. Kf3
{[%clk 0:00:51.6]} 39... Rdc8 {[%clk 0:00:22.3]} 40. Kg4 {[%clk 0:00:47.2]}
40... b4 {[%clk 0:00:18.7]} 41. Kh5 {[%clk 0:00:38]} 41... b3 {[%clk 0:00:16.2]}
42. Qd4+ {[%clk 0:00:37.9]} 42... Ke8 {[%clk 0:00:14.9]} 43. Qa4+ {[%clk
0:00:37.3]} 43... Kf7 {[%clk 0:00:14.1]} 44. Qxb3 {[%clk 0:00:37.6]} 44... R2c4
{[%clk 0:00:13.7]} 45. g6+ {[%clk 0:00:37.4]} 45... Kf6 {[%clk 0:00:12.8]} 46.
Qf3+ {[%clk 0:00:34.3]} 46... Ke7 {[%clk 0:00:12.1]} 47. g7 {[%clk 0:00:33.4]}
47... R4c5+ {[%clk 0:00:09.1]} 48. Kg6 {[%clk 0:00:32.8]} 48... a5 {[%clk
0:00:03.2]} 49. Qf7+ {[%clk 0:00:31.4]} 49... Kd6 {[%clk 0:00:03.3]} 50. Qf8+
{[%clk 0:00:30.9]} 50... Kd5 {[%clk 0:00:01.5]} 51. g8=Q {[%clk 0:00:20.4]}
51... Rxf8 {[%clk 0:00:01.7]} 52. Qxf8 {[%clk 0:00:20.9]} 52... Rc4 {[%clk
0:00:02.2]} 53. Qd8+ {[%clk 0:00:21.1]} 53... Kc5 {[%clk 0:00:02.3]} 54. h5
{[%clk 0:00:21.6]} 54... a4 {[%clk 0:00:02.4]} 55. h6 {[%clk 0:00:21.7]} 55...
Kb4 {[%clk 0:00:03.3]} 56. h7 {[%clk 0:00:21.9]} 56... Rg4+ {[%clk 0:00:03]} 57.
Kh5 {[%clk 0:00:21.7]} 57... Rg1 {[%clk 0:00:03.3]} 58. h8=Q {[%clk 0:00:21.5]}
58... Rh1+ {[%clk 0:00:03.6]} 59. Kg4 {[%clk 0:00:21.9]} 59... Rxh8 {[%clk
0:00:04.5]} 60. Qxh8 {[%clk 0:00:21.8]} 60... a3 {[%clk 0:00:05.4]} 61. Qa1
{[%clk 0:00:22.3]} 61... Kb3 {[%clk 0:00:05.9]} 62. Kf4 {[%clk 0:00:22.7]} 62...
e5+ {[%clk 0:00:05.5]} 63. Kxe5 {[%clk 0:00:23.6]} 63... a2 {[%clk 0:00:05.8]}
64. Ke6 {[%clk 0:00:24.5]} 64... Ka3 {[%clk 0:00:05.9]} 65. Kd5 {[%clk
0:00:25.4]} 65... Kb3 {[%clk 0:00:06.8]} 66. Kd4 {[%clk 0:00:26.3]} 66... Ka3
{[%clk 0:00:07.7]} 67. Kc4 {[%clk 0:00:25.1]} 67... Ka4 {[%clk 0:00:06.1]} 68.
Qxa2# {[%clk 0:00:26]} 1-0